fUSD/lending_fUSD_20260311
["ID","MTS","AMOUNT","RATE_DAILY","PERIOD"]
[408186720,1773195039323,-2207.0,0.00019678,2]
[408186721,1773195039334,-2339.44391858,0.00019678,2]
[408186722,1773195039343,-438.01500328,0.00019679,2]
[408186723,1773195039352,-500.0,0.00019679,2]
[408186724,1773195039361,-497.54851527,0.00019679,2]
[408186725,1773195039370,-500.0,0.00019679,2]
[408186726,1773195039380,-361.20938221,0.00019679,2]
[408186727,1773195039389,-500.0,0.00019679,2]
[408186728,1773195039398,-500.0,0.00019679,2]
[408186729,1773195039408,-173.924,0.00019683,2]
[408186730,1773195039418,-2741.881,0.00019683,2]
[408186732,1773195039427,-405.76,0.00019686,2]
[408186733,1773195039437,-1979.66047424,0.000197,2]
[408186734,1773195039446,-155.04313062,0.00019725,5]
[408186735,1773195039456,-500.0,0.00019725,2]
[408186736,1773195039465,-150.0,0.00019725,5]
[408186737,1773195039474,-508.40747753,0.00019725,5]
[408186738,1773195039483,-500.0,0.00019726,2]
[408186739,1773195039493,-500.0,0.0001978,2]
[408186740,1773195039502,-150.0,0.0001978,5]
[408186741,1773195039511,-2339.44391858,0.00019789,2]
[408186742,1773195039520,-500.0,0.00019799,2]
[408186743,1773195039531,-1000.0,0.000198,2]
[408186744,1773195039541,-32938.1023,0.000198,2]
[408186745,1773195039551,-150.0,0.000198,14]
[408186746,1773195039560,-162.0,0.000198,3]
[408186747,1773195039570,-164.52,0.000198,3]
[408186748,1773195039579,-633.82202108,0.00019802,2]
[408186749,1773195039588,-2588.60547753,0.0001981,2]
[408186750,1773195039597,-1000.0,0.00019822,2]
[408186751,1773195039607,-500.0,0.00019834,2]
[408186752,1773195039616,-500.0,0.00019834,2]
[408186753,1773195039625,-500.0,0.00019834,2]
[408186754,1773195039634,-500.0,0.00019834,2]
[408186755,1773195039643,-500.0,0.00019834,2]
[408186756,1773195039655,-500.0,0.00019834,2]
[408186757,1773195039666,-500.0,0.00019834,2]
[408186758,1773195039675,-500.0,0.00019834,2]
[408186759,1773195039685,-500.0,0.00019835,2]
[408186760,1773195039694,-200.62449707,0.00019835,5]
[408186761,1773195039704,-1000.0,0.00019844,2]
[408186762,1773195039713,-196.5,0.00019868,2]
[408186763,1773195039723,-17405.78691222,0.0001987,2]
[408186764,1773195039732,-500.0,0.0001989,2]
[408186765,1773195039742,-168.0,0.00019895,2]
[408186766,1773195039751,-500.0,0.00019899,2]
[408186767,1773195039760,-439.94423244,0.00019899,2]
[408186768,1773195039770,-1767.47,0.00019899,2]
[408186769,1773195039779,-1767.47,0.00019899,2]
[408186770,1773195039788,-1767.47,0.00019899,2]
[408186771,1773195039797,-1767.47,0.00019899,2]
[408186772,1773195039807,-1767.47,0.00019899,2]
[408186773,1773195039816,-1767.47,0.00019899,2]
[408186774,1773195039826,-1767.47,0.00019899,2]
[408186775,1773195039835,-1767.47,0.00019899,2]
[408186776,1773195039844,-1767.47,0.00019899,2]
[408186777,1773195039853,-1767.47,0.00019899,2]
[408186778,1773195039863,-1767.47,0.00019899,2]
[408186779,1773195039872,-1767.47,0.00019899,2]
[408186780,1773195039882,-1767.47,0.00019899,2]
[408186781,1773195039891,-1767.47,0.00019899,2]
[408186782,1773195039900,-1767.47,0.00019899,2]
[408186783,1773195039910,-1767.47,0.00019899,2]
[408186784,1773195039919,-1767.47,0.00019899,2]
[408186785,1773195039929,-1767.47,0.00019899,2]
[408186786,1773195039939,-1767.47,0.00019899,2]
[408186787,1773195039949,-1767.47,0.00019899,2]
[408186788,1773195039959,-1767.47,0.00019899,2]
[408186789,1773195039968,-1767.47,0.00019899,2]
[408186790,1773195039978,-1767.47,0.00019899,2]
[408186791,1773195039987,-1767.6607929,0.00019899,2]
[408186792,1773195039996,-500.0,0.00019899,2]
[408186793,1773195040005,-500.62592271,0.00019899,2]
[408186794,1773195040014,-1198.58,0.00019899,2]
[408186795,1773195040024,-1198.58,0.00019899,2]
[408186796,1773195040033,-1198.58,0.00019899,2]
[408186797,1773195040042,-1198.58,0.00019899,2]
[408186798,1773195040051,-1198.58,0.00019899,2]
[408186799,1773195040205,-1198.58,0.00019899,2]
[408186800,1773195040215,-1198.58,0.00019899,2]
[408186801,1773195040224,-1198.58,0.00019899,2]
[408186802,1773195040235,-1198.58,0.00019899,2]
[408186803,1773195040246,-1198.58,0.00019899,2]
[408186804,1773195040257,-1198.58,0.00019899,2]
[408186805,1773195040267,-1198.58,0.00019899,2]
[408186806,1773195040277,-1198.58,0.00019899,2]
[408186807,1773195040286,-1198.58,0.00019899,2]
[408186808,1773195040295,-1198.58,0.00019899,2]
[408186809,1773195040306,-1198.58,0.00019899,2]
[408186810,1773195040315,-1198.58,0.00019899,2]
[408186811,1773195040324,-1198.58,0.00019899,2]
[408186812,1773195040335,-1198.58,0.00019899,2]
[408186813,1773195040344,-1198.58,0.00019899,2]
[408186814,1773195040353,-1198.58,0.00019899,2]
[408186815,1773195040363,-1198.58,0.00019899,2]
[408186816,1773195040372,-1198.58,0.00019899,2]
[408186817,1773195040381,-1198.69073917,0.00019899,2]
[408186818,1773195040391,-500.0,0.00019899,2]
[408186819,1773195040400,-500.0,0.00019899,2]
[408186820,1773195040410,-500.0,0.00019899,2]
[408186821,1773195040419,-500.0,0.00019899,2]
[408186822,1773195040428,-500.0,0.00019899,2]
[408186823,1773195040437,-527.85855313,0.00019899,2]
[408186824,1773195040447,-500.0,0.00019899,2]
[408186825,1773195040456,-500.0,0.00019899,2]
[408186826,1773195040465,-500.0,0.00019899,2]
[408186827,1773195040474,-500.0,0.00019899,2]
[408186828,1773195040483,-220.0803754,0.00019899,2]
[408186829,1773195040494,-151.0,0.00019899,2]
[408186830,1773195040503,-151.0,0.00019899,2]
[408186831,1773195040512,-151.0,0.00019899,2]
[408186832,1773195040522,-300.0,0.00019899,2]
[408186833,1773195040531,-300.0,0.00019899,2]
[408186834,1773195040541,-300.0,0.00019899,2]
[408186835,1773195040550,-300.0,0.00019899,2]
[408186836,1773195040560,-300.0,0.00019899,2]
[408186837,1773195040570,-300.0,0.00019899,2]
[408186838,1773195040579,-300.0,0.00019899,2]
[408186839,1773195040589,-151.0,0.00019899,2]
[408186840,1773195040599,-300.0,0.00019899,2]
[408186841,1773195040609,-300.0,0.00019899,2]
[408186842,1773195040619,-300.0,0.00019899,2]
[408186843,1773195040629,-300.0,0.00019899,2]
[408186844,1773195040639,-300.0,0.00019899,2]
[408186845,1773195040648,-303.10685583,0.00019899,2]
[408186846,1773195040660,-151.0,0.00019899,2]
[408186847,1773195040669,-151.0,0.00019899,2]
[408186848,1773195040678,-151.0,0.00019899,2]
[408186849,1773195040688,-151.0,0.00019899,2]
[408186850,1773195040699,-500.0,0.00019899,2]
[408186851,1773195040711,-500.0,0.00019899,2]
[408186852,1773195040721,-500.0,0.00019899,2]
[408186853,1773195040730,-500.0,0.00019899,2]
[408186854,1773195040739,-209.316327,0.00019899,2]
[408186855,1773195040748,-209.316327,0.00019899,2]
[408186856,1773195040759,-209.316327,0.00019899,2]
[408186857,1773195040768,-209.316327,0.00019899,2]
[408186858,1773195040778,-500.0,0.00019899,2]
[408186859,1773195040787,-500.0,0.00019899,2]
[408186860,1773195040795,-151.0,0.00019899,2]
[408186861,1773195040804,-151.0,0.00019899,2]
[408186862,1773195040813,-151.0,0.00019899,2]
[408186863,1773195040822,-151.0,0.00019899,2]
[408186864,1773195040832,-362.476985,0.00019899,2]
[408186865,1773195040841,-362.476985,0.00019899,2]
[408186866,1773195040851,-362.476985,0.00019899,2]
[408186867,1773195040862,-362.476985,0.00019899,2]
[408186868,1773195040872,-151.000005,0.00019899,2]
[408186869,1773195040880,-328.104107,0.00019899,2]
[408186870,1773195040890,-328.104107,0.00019899,2]
[408186871,1773195040899,-328.104107,0.00019899,2]
[408186872,1773195040910,-328.104107,0.00019899,2]
[408186873,1773195040919,-151.0,0.00019899,2]
[408186874,1773195040930,-10000.0,0.000199,2]
[408186875,1773195040939,-500.0,0.000199,2]
[408186876,1773195040950,-500.0,0.000199,2]
[408186877,1773195040959,-500.0,0.000199,2]
[408186878,1773195040969,-337.53416247,0.000199,2]
[408186879,1773195040979,-758.01210753,0.000199,2]
[408186880,1773195040988,-2339.44391858,0.000199,2]
[408186881,1773195040997,-204.30932807,0.000199,2]
[408186882,1773195041006,-542.06913408,0.000199,2]
[408186883,1773195041015,-4728.87848725,0.000199,2]
[408186884,1773195041023,-197.70766094,0.000199,3]
[408186885,1773195041032,-1045.63398013,0.000199,2]
[408186886,1773195041041,-12075.41488021,0.000199,2]
[408186887,1773195041050,-12127.36029718,0.00019914,2]
[408186888,1773195041178,-1000.0,0.00019875,2]
[408186889,1773195041188,-1000.0,0.00019875,2]
[408186890,1773195041200,-1000.0,0.00019875,2]
[408186891,1773195041209,-254.22693014,0.000199,2]
[408186892,1773195041219,-48049.52711272,0.00019914,2]
[408186893,1773195041227,-159.76,0.00019925,2]
[408186894,1773195041236,-3108.77,0.0001993,2]
[408186895,1773195041247,-196.5,0.00019934,2]
[408186896,1773195041261,-152.90665268,0.0001994,2]
[408186897,1773195041270,-500.0,0.00019945,2]
[408186898,1773195041279,-168.0,0.00019949,2]
[408186899,1773195041288,-1000.0,0.00019952,2]
[408186900,1773195041299,-250.0,0.00019953,2]
[408186901,1773195041308,-250.0,0.00019963,2]
[408186902,1773195041317,-527.47030383,0.00019979,2]
[408186903,1773195041327,-119496.68907408,0.0001998,2]
[408186904,1773195041338,-160.94322,0.0001998,2]
[408186905,1773195041349,-160.94322,0.0001998,2]
[408186906,1773195041359,-160.94322,0.0001998,2]
[408186907,1773195041368,-160.94322,0.0001998,2]
[408186908,1773195041378,-151.0,0.0001998,2]
[408186909,1773195041388,-277.52832,0.0001998,2]
[408186910,1773195041398,-151.0,0.0001998,2]
[408186911,1773195041408,-242.378399,0.0001998,2]
[408186912,1773195041419,-151.0,0.0001998,2]
[408186913,1773195041427,-151.0,0.0001998,2]
[408186914,1773195041436,-151.0,0.0001998,2]
[408186915,1773195041445,-151.0,0.0001998,2]
[408186916,1773195041454,-209.316327,0.0001998,2]
[408186917,1773195041463,-209.316327,0.0001998,2]
[408186918,1773195041472,-209.316327,0.0001998,2]
[408186919,1773195041481,-209.316327,0.0001998,2]
[408186920,1773195041490,-151.0,0.0001998,2]
[408186921,1773195041499,-151.0,0.0001998,2]
[408186922,1773195041508,-151.0,0.0001998,2]
[408186923,1773195041518,-191.721519,0.0001998,2]
[408186924,1773195041527,-362.476985,0.0001998,2]
[408186925,1773195041536,-362.476985,0.0001998,2]
[408186926,1773195041546,-362.476985,0.0001998,2]
[408186927,1773195041555,-362.476985,0.0001998,2]
[408186928,1773195041563,-328.104107,0.0001998,2]
[408186929,1773195041572,-328.104107,0.0001998,2]
[408186930,1773195041581,-328.104107,0.0001998,2]
[408186931,1773195041590,-328.104107,0.0001998,2]
[408186932,1773195041599,-151.0,0.0001998,2]
[408186933,1773195041608,-551.0,0.00019982,2]
[408186934,1773195041617,-217.24219,0.00019989,2]
[408186935,1773195041626,-186.29829342,0.0001999,2]
[408186936,1773195041634,-186.29829342,0.0001999,2]
[408186937,1773195041643,-186.29829342,0.0001999,2]
[408186938,1773195041652,-500.0,0.00019998,2]
[408186939,1773195041661,-500.0,0.00019998,2]
[408186940,1773195041670,-500.0,0.00019998,2]
[408186941,1773195041679,-500.0,0.00019998,2]
[408186942,1773195041688,-500.0,0.00019998,2]
[408186943,1773195041697,-500.0,0.00019998,2]
[408186944,1773195041706,-500.0,0.00019998,2]
[408186945,1773195041715,-500.0,0.00019998,2]
[408186946,1773195041724,-204.07600257,0.00019999,5]
[408186947,1773195041733,-1090.54690258,0.00019999,5]
[408186948,1773195041743,-500.0,0.00019999,2]
[408186949,1773195041752,-500.0,0.00019999,2]
[408186950,1773195041761,-530.47109549,0.00019999,2]
[408186951,1773195041769,-500.0,0.00019999,2]
[408186952,1773195041778,-500.0,0.00019999,2]
[408186953,1773195041787,-502.06591297,0.00019999,2]
[408186954,1773195041796,-500.0,0.00019999,2]
[408186955,1773195041805,-500.0,0.00019999,2]
[408186956,1773195041814,-500.0,0.00019999,2]
[408186957,1773195041823,-500.0,0.00019999,2]
[408186958,1773195041832,-500.0,0.00019999,2]
[408186959,1773195041840,-500.0,0.00019999,2]
[408186960,1773195041849,-500.0,0.00019999,2]
[408186961,1773195041859,-500.0,0.00019999,2]
[408186962,1773195041867,-507.50732285,0.00019999,2]
[408186963,1773195041877,-500.0,0.00019999,2]
[408186964,1773195041886,-500.0,0.00019999,2]
[408186965,1773195041895,-500.0,0.00019999,2]
[408186966,1773195041904,-500.0,0.00019999,2]
[408186967,1773195041913,-500.0,0.00019999,2]
[408186968,1773195041922,-500.0,0.00019999,2]
[408186969,1773195041932,-500.0,0.00019999,2]
[408186970,1773195041940,-500.0,0.00019999,2]
[408186971,1773195041950,-500.0,0.00019999,2]
[408186972,1773195041959,-301.87454331,0.00019999,2]
[408186973,1773195041968,-500.0,0.00019999,2]
[408186974,1773195041977,-500.0,0.00019999,2]
[408186975,1773195041986,-500.0,0.00019999,2]
[408186976,1773195041994,-500.0,0.00019999,2]
[408186977,1773195042003,-500.0,0.00019999,2]
[408186978,1773195042012,-500.0,0.00019999,2]
[408186979,1773195042021,-500.0,0.00019999,2]
[408186980,1773195042029,-500.0,0.00019999,2]
[408186981,1773195042038,-500.0,0.00019999,2]
[408186982,1773195042047,-256.31635303,0.00019999,2]
[408186983,1773195042055,-510.12107787,0.00019999,2]
[408186984,1773195042064,-500.0,0.00019999,2]
[408186985,1773195042073,-539.6122178,0.00019999,2]
[408186986,1773195042082,-350.0,0.00019999,2]
[408186987,1773195042091,-500.0,0.00019999,2]
[408186988,1773195042100,-350.0,0.00019999,2]
[408186989,1773195042109,-500.0,0.00019999,2]
[408186990,1773195042118,-304.43194707,0.00019999,2]
[408186991,1773195042126,-502.71493075,0.00019999,2]
[408186992,1773195042135,-500.0,0.00019999,2]
[408186993,1773195042144,-500.0,0.00019999,2]
[408186994,1773195042154,-500.0,0.00019999,2]
[408186995,1773195042163,-500.0,0.00019999,2]
[408186996,1773195042172,-500.0,0.00019999,2]
[408186997,1773195042180,-500.0,0.00019999,2]
[408186998,1773195042189,-502.25944684,0.00019999,2]
[408186999,1773195042198,-258.14886271,0.00019999,2]
[408187000,1773195042207,-500.0,0.00019999,2]
[408187001,1773195042216,-500.0,0.00019999,2]
[408187002,1773195042225,-500.0,0.00019999,2]
[408187003,1773195042234,-500.0,0.00019999,2]
[408187004,1773195042243,-500.0,0.00019999,2]
[408187005,1773195042252,-500.0,0.00019999,2]
[408187006,1773195042265,-500.0,0.00019999,2]
[408187007,1773195042274,-500.0,0.00019999,2]
[408187008,1773195042283,-583.8453258,0.00019999,2]
[408187009,1773195042292,-500.0,0.00019999,2]
[408187010,1773195042303,-500.0,0.00019999,2]
[408187011,1773195042312,-514.68332099,0.00019999,2]
[408187013,1773195042321,-500.0,0.00019999,2]
[408187015,1773195042330,-500.0,0.00019999,2]
[408187016,1773195042339,-500.0,0.00019999,2]
[408187017,1773195042348,-554.34014391,0.00019999,2]
[408187018,1773195042357,-151.0,0.00019999,2]
[408187019,1773195042366,-151.0,0.00019999,2]
[408187020,1773195042375,-500.0,0.00019999,2]
[408187021,1773195042384,-500.0,0.00019999,2]
[408187022,1773195042393,-500.0,0.00019999,2]
[408187023,1773195042402,-500.0,0.00019999,2]
[408187024,1773195042411,-500.0,0.00019999,2]
[408187025,1773195042420,-500.0,0.00019999,2]
[408187026,1773195042429,-500.0,0.00019999,2]
[408187027,1773195042438,-506.32926117,0.00019999,2]
[408187028,1773195042447,-500.0,0.00019999,2]
[408187029,1773195042456,-500.0,0.00019999,2]
[408187030,1773195042465,-314.42910771,0.00019999,2]
[408187031,1773195042474,-500.0,0.00019999,2]
[408187032,1773195042483,-500.0,0.00019999,2]
[408187033,1773195042492,-500.0,0.00019999,2]
[408187034,1773195042501,-610.63586065,0.00019999,2]
[408187035,1773195042511,-500.0,0.00019999,2]
[408187036,1773195042520,-500.0,0.00019999,2]
[408187037,1773195042529,-500.0,0.00019999,2]
[408187038,1773195042538,-500.0,0.00019999,2]
[408187039,1773195042547,-500.0,0.00019999,2]
[408187040,1773195042555,-500.0,0.00019999,2]
[408187041,1773195042565,-500.0,0.00019999,2]
[408187042,1773195042573,-500.0,0.00019999,2]
[408187043,1773195042582,-510.41061214,0.00019999,2]
[408187044,1773195042591,-500.0,0.00019999,2]
[408187045,1773195042600,-507.53424196,0.00019999,2]
[408187046,1773195042610,-507.80320873,0.00019999,2]
[408187047,1773195042619,-500.0,0.00019999,2]
[408187048,1773195042628,-500.0,0.00019999,2]
[408187049,1773195042638,-506.63695301,0.00019999,2]
[408187050,1773195042647,-500.0,0.00019999,2]
[408187051,1773195042658,-500.0,0.00019999,2]
[408187052,1773195042668,-500.0,0.00019999,2]
[408187053,1773195042678,-500.0,0.00019999,2]
[408187054,1773195042687,-500.0,0.00019999,2]
[408187055,1773195042696,-500.0,0.00019999,2]
[408187056,1773195042705,-500.0,0.00019999,2]
[408187057,1773195042715,-515.12356361,0.00019999,2]
[408187058,1773195042724,-500.0,0.00019999,2]
[408187059,1773195042735,-500.0,0.00019999,2]
[408187060,1773195042745,-500.0,0.00019999,2]
[408187061,1773195042755,-630.81055911,0.00019999,2]
[408187062,1773195042766,-3000.0,0.00019999,2]
[408187063,1773195042775,-3000.0,0.00019999,2]
[408187064,1773195042784,-3000.0,0.00019999,2]
[408187065,1773195042793,-3000.0,0.00019999,2]
[408187066,1773195042802,-3000.0,0.00019999,2]
[408187067,1773195042811,-3000.0,0.00019999,2]
[408187069,1773195042821,-3000.0,0.00019999,2]
[408187070,1773195042831,-3000.0,0.00019999,2]
[408187071,1773195042841,-3000.0,0.00019999,2]
[408187072,1773195042850,-3000.0,0.00019999,2]
[408187073,1773195042859,-3000.0,0.00019999,2]
[408187074,1773195042868,-3000.0,0.00019999,2]
[408187075,1773195042876,-3000.0,0.00019999,2]
[408187076,1773195042885,-3000.0,0.00019999,2]
[408187077,1773195042895,-3000.0,0.00019999,2]
[408187078,1773195042904,-3000.0,0.00019999,2]
[408187079,1773195042914,-981.54307946,0.00019999,2]
[408187080,1773195042923,-500.0,0.00019999,2]
[408187081,1773195042931,-2763.0,0.0002,2]
[408187082,1773195042944,-2553898.81318102,0.0002,2]
[408187083,1773195042954,-164.68876927,0.0002,2]
[408187084,1773195042965,-174.56,0.0002,2]
[408187085,1773195042974,-19263.56,0.0002,2]
[408187086,1773195042983,-853.3977975,0.0002,2]
[408187087,1773195042992,-1000.0,0.0002,4]
[408187089,1773195043002,-155.56,0.0002,2]
[408187091,1773195043011,-710.46,0.0002,2]
[408187093,1773195043020,-696570.40626647,0.0002,2]
[408187095,1773195043029,-635.96194257,0.0002,2]
[408187097,1773195043039,-407.22899406,0.0002,2]
[408187099,1773195043047,-1061917.69250826,0.0002,2]
[408187101,1773195043056,-259.96008007,0.0002,2]
[408187103,1773195043065,-150.0,0.0002,7]
[408187104,1773195043074,-296.75496853,0.0002,2]
[408187105,1773195043083,-1500.0,0.0002,2]
[408187106,1773195043092,-1054.91234,0.0002,2]
[408187107,1773195043101,-500.0,0.0002,2]
[408187108,1773195043110,-300.0,0.0002,2]
[408187109,1773195043119,-152.0,0.0002,2]
[408187110,1773195043128,-151.0,0.0002,2]
[408187111,1773195043137,-151.0,0.0002,2]
[408187112,1773195043146,-3240.59,0.0002,2]
[408187113,1773195043156,-151.0,0.0002,2]
[408187114,1773195043165,-1516.0,0.0002,2]
[408187115,1773195043174,-151.0,0.0002,2]
[408187116,1773195043183,-151.0,0.0002,2]
[408187117,1773195043193,-151.0,0.0002,2]
[408187118,1773195043202,-151.0,0.0002,2]
[408187119,1773195043211,-151.0,0.0002,2]
[408187120,1773195043220,-151.0,0.0002,2]
[408187121,1773195043229,-151.0,0.0002,2]
[408187122,1773195043238,-213.244639,0.0002,2]
[408187123,1773195043247,-1276212.28576236,0.0002,2]
[408187124,1773195043259,-160.94322,0.0002,2]
[408187125,1773195043268,-160.94322,0.0002,2]
[408187126,1773195043278,-160.94322,0.0002,2]
[408187127,1773195043287,-160.94322,0.0002,2]
[408187128,1773195043296,-160.94322,0.0002,2]
[408187129,1773195043307,-160.94322,0.0002,2]
[408187130,1773195043317,-160.94322,0.0002,2]
[408187131,1773195043326,-160.94322,0.0002,2]
[408187132,1773195043336,-160.94322,0.0002,2]
[408187133,1773195043345,-160.94322,0.0002,2]
[408187134,1773195043355,-160.94322,0.0002,2]
[408187135,1773195043364,-160.94322,0.0002,2]
[408187136,1773195043373,-160.94322,0.0002,2]
[408187137,1773195043382,-160.94322,0.0002,2]
[408187138,1773195043391,-160.94322,0.0002,2]
[408187139,1773195043400,-160.943226,0.0002,2]
[408187140,1773195043409,-151.0,0.0002,2]
[408187141,1773195043419,-151.0,0.0002,2]
[408187142,1773195043428,-151.0,0.0002,2]
[408187143,1773195043438,-151.0,0.0002,2]
[408187144,1773195043448,-151.0,0.0002,2]
[408187145,1773195043458,-3107.56893754,0.0002,2]
[408187146,1773195043467,-151.0,0.0002,2]
[408187147,1773195043476,-165.705384,0.0002,2]
[408187148,1773195043485,-151.0,0.0002,2]
[408187149,1773195043495,-151.0,0.0002,2]
[408187150,1773195043504,-151.0,0.0002,2]
[408187151,1773195043514,-151.0,0.0002,2]
[408187152,1773195043523,-151.0,0.0002,2]
[408187153,1773195043532,-151.0,0.0002,2]
[408187154,1773195043541,-151.0,0.0002,2]
[408187155,1773195043550,-151.0,0.0002,2]
[408187156,1773195043559,-151.0,0.0002,2]
[408187157,1773195043568,-160.680444,0.0002,2]
[408187158,1773195043577,-209.316327,0.0002,2]
[408187159,1773195043586,-209.316327,0.0002,2]
[408187160,1773195043596,-209.316327,0.0002,2]
[408187161,1773195043605,-209.316327,0.0002,2]
[408187162,1773195043614,-209.316327,0.0002,2]
[408187163,1773195043623,-209.316327,0.0002,2]
[408187164,1773195043632,-209.316327,0.0002,2]
[408187165,1773195043641,-209.316327,0.0002,2]
[408187166,1773195043651,-209.316327,0.0002,2]
[408187167,1773195043659,-209.316327,0.0002,2]
[408187168,1773195043669,-209.316327,0.0002,2]
[408187169,1773195043678,-209.316336,0.0002,2]
[408187170,1773195043687,-151.0,0.0002,2]
[408187171,1773195043697,-151.0,0.0002,2]
[408187172,1773195043706,-151.0,0.0002,2]
[408187173,1773195043715,-156.021909,0.0002,2]
[408187174,1773195043724,-832.31214,0.0002,2]
[408187175,1773195043733,-832.31214,0.0002,2]
[408187176,1773195043742,-832.31214,0.0002,2]
[408187177,1773195043750,-832.31214,0.0002,2]
[408187178,1773195043759,-832.31214,0.0002,2]
[408187179,1773195043769,-832.31214,0.0002,2]
[408187180,1773195043778,-151.0,0.0002,2]
[408187181,1773195043787,-151.0,0.0002,2]
[408187182,1773195043796,-151.0,0.0002,2]
[408187183,1773195043805,-362.476985,0.0002,2]
[408187184,1773195043814,-362.476985,0.0002,2]
[408187185,1773195043824,-362.476985,0.0002,2]
[408187186,1773195043833,-362.476985,0.0002,2]
[408187187,1773195043842,-362.476985,0.0002,2]
[408187188,1773195043851,-362.476985,0.0002,2]
[408187189,1773195043861,-362.476985,0.0002,2]
[408187190,1773195043870,-362.476985,0.0002,2]
[408187191,1773195043879,-362.476985,0.0002,2]
[408187192,1773195043888,-362.476985,0.0002,2]
[408187193,1773195043898,-362.476985,0.0002,2]
[408187194,1773195043907,-362.47699,0.0002,2]
[408187195,1773195043916,-328.104107,0.0002,2]
[408187196,1773195043926,-328.104107,0.0002,2]
[408187197,1773195043935,-328.104107,0.0002,2]
[408187198,1773195043944,-328.104107,0.0002,2]
[408187199,1773195043953,-328.104107,0.0002,2]
[408187200,1773195043963,-328.104107,0.0002,2]
[408187201,1773195043972,-328.104107,0.0002,2]
[408187202,1773195043981,-328.104107,0.0002,2]
[408187203,1773195044140,-328.104107,0.0002,2]
[408187204,1773195044150,-328.104107,0.0002,2]
[408187205,1773195044159,-328.104107,0.0002,2]
[408187206,1773195044169,-328.104105,0.0002,2]
[408187207,1773195044179,-154.017392,0.0002,2]
[408187208,1773195044188,-250.0,0.0002,2]
[408187209,1773195044198,-338.0,0.00020015,2]
[408187210,1773195044207,-551.0,0.00020016,2]
[408187211,1773195044217,-500.0,0.00020054,2]
[408187212,1773195044226,-187.2,0.00020065,2]
[408187213,1773195044236,-1000.0,0.00020096,2]
[408187214,1773195044245,-160.0,0.00020101,2]
[408187215,1773195044255,-172.95802059,0.00020101,2]
[408187216,1773195044268,-398.88764252,0.00020109,2]
[408187217,1773195044278,-231.95927925,0.00020113,2]
[408187218,1773195044287,-350.0,0.00020144,2]
[408187219,1773195044296,-338.0,0.00020145,2]
[408187220,1773195044307,-551.0,0.00020173,2]
[408187221,1773195044318,-339.0,0.00020178,2]
[408187222,1773195044327,-339.0,0.00020179,2]
[408187223,1773195044337,-350.0,0.00020191,2]
[408187224,1773195044348,-329.0,0.00020205,2]
[408187225,1773195044357,-227.0,0.00020255,2]
[408187226,1773195044366,-338.0,0.00020264,2]
[408187227,1773195044375,-338.0,0.00020327,2]
[408187228,1773195044385,-1000.0,0.0002037,2]
[408187229,1773195044394,-3108.77,0.00020393,2]
[408187230,1773195044403,-350.0,0.00020499,2]
[408187231,1773195044413,-157.62,0.00020548,2]